bitfinex-derivatives/quotes_SOLF0:USTF0_20241010
["timestamp","ask_amount","ask_price","bid_price","bid_amount"]
[1728556767575,3.5875,139.52,139.5,14.6278]
[1728556768869,6.4579,139.54,139.51,3.5876]
[1728556769074,6.57922,139.55,139.51,14.6276]
[1728556769380,6.57922,139.55,139.51,11.04]
[1728556769381,3.5873,139.53,139.51,11.04]
[1728556769988,3.5873,139.53,139.51,14.6277]
[1728556770980,3.5874,139.52,139.51,11.04]
[1728556772879,3.5874,139.52,139.5,11.04]
[1728556773784,3.5874,139.52,139.5,14.6279]
[1728556775686,3.5874,139.52,139.51,11.04]
[1728556776780,3.5873,139.53,139.51,11.04]
[1728556777175,12.49922,139.55,139.5,3.5879]
[1728556777380,12.49922,139.55,139.5,11.04]
[1728556777987,3.5876,139.52,139.5,11.04]
[1728556778188,3.5876,139.52,139.5,14.6279]
[1728556780188,3.5873,139.53,139.51,14.6276]
[1728556780487,0.12502,139.55,139.52,11.04]
[1728556780683,0.12502,139.55,139.54,11.04]
[1728556781280,0.12502,139.55,139.54,14.6269]
[1728556781481,0.12502,139.55,139.54,11.04]
[1728556782595,0.12502,139.55,139.54,3.5869]
[1728556782790,0.12502,139.55,139.54,14.6269]
[1728556783288,0.12502,139.61,139.54,11.04]
[1728556783494,0.12502,139.61,139.53,5.12]
[1728556783791,11.04,139.6,139.55,11.04]
[1728556785090,3.586,139.58,139.55,11.04]
[1728556785787,11.04,139.58,139.49,2.54372]
[1728556785991,11.04,139.57,139.53,11.04]
[1728556786303,3.5866,139.56,139.53,11.04]
[1728556786495,11.04,139.58,139.53,11.04]
[1728556786689,11.04,139.57,139.53,11.04]
[1728556787497,12.4607,139.58,139.54,11.04]
[1728556788496,3.5865,139.56,139.54,11.04]
[1728556788692,1.4207,139.58,139.55,11.04]
[1728556789494,1.4603,139.59,139.56,11.04]
[1728556790297,3.5861,139.58,139.56,11.04]
[1728556790797,1.4603,139.59,139.55,11.04]
[1728556791018,3.5862,139.57,139.55,11.04]
[1728556792100,12.5003,139.59,139.54,11.04]
[1728556792395,3.5865,139.56,139.54,11.04]
[1728556792595,11.04,139.58,139.53,16.16]
[1728556792794,11.04,139.58,139.54,11.04]
[1728556792999,3.5866,139.56,139.54,11.04]
[1728556793900,11.04,139.57,139.54,11.04]
[1728556794106,11.04,139.55,139.51,5.12]
[1728556794407,11.04,139.55,139.51,16.16]
[1728556794595,11.04,139.55,139.51,11.04]
[1728556794800,3.5871,139.54,139.51,14.6275]
[1728556796001,11.04,139.55,139.51,11.04]
[1728556796904,3.5874,139.53,139.51,11.04]
[1728556797509,3.5874,139.52,139.5,19.7479]
[1728556798006,3.5873,139.53,139.5,14.6279]
[1728556800201,3.5873,139.53,139.51,11.04]
[1728556800401,3.5871,139.54,139.51,14.6275]
[1728556800607,11.04,139.55,139.5,11.04]
[1728556801407,3.5873,139.53,139.5,14.6278]
[1728556802003,11.04,139.53,139.49,0.12502]
[1728556802202,3.5879,139.5,139.49,0.12502]
[1728556812313,1.3404,139.52,139.49,11.16502]
[1728556812624,1.385,139.53,139.5,11.04]
[1728556812625,6.505,139.53,139.5,11.04]
[1728556813012,6.505,139.53,139.49,11.16502]
[1728556813013,3.5877,139.51,139.49,11.16502]
[1728556813219,17.545,139.53,139.49,11.16502]
[1728556813527,18.9805,139.53,139.49,11.16502]
[1728556813710,3.5879,139.5,139.49,0.12502]
[1728556815525,3.5879,139.51,139.49,11.16502]
[1728556815721,18.9805,139.53,139.49,11.16502]
[1728556816423,3.5879,139.5,139.49,11.16502]
[1728556816620,18.9805,139.53,139.49,11.16502]
[1728556817422,3.5878,139.51,139.49,11.16502]
[1728556821122,3.5878,139.51,139.49,14.75322]
[1728556821426,11.04,139.52,139.49,0.12502]
[1728556821622,3.5879,139.5,139.49,0.12502]
[1728556824527,14.6279,139.5,139.49,0.12502]
[1728556825815,3.5879,139.5,139.49,0.12502]
[1728556827326,14.6279,139.5,139.49,0.12502]
[1728556829532,19.7479,139.5,139.49,0.12502]
[1728556831533,8.7079,139.5,139.49,0.12502]
[1728556833329,19.7479,139.5,139.49,0.12502]
[1728556834435,8.7079,139.5,139.49,0.12502]
[1728556834623,3.5879,139.5,139.49,0.12502]
[1728556837322,14.6279,139.5,139.49,0.12502]
[1728556846349,11.04,139.5,139.44,3.5894]
[1728556846655,3.5891,139.46,139.44,3.5894]
[1728556846845,5.12,139.49,139.43,16.28502]
[1728556846846,11.04,139.47,139.43,0.12502]
[1728556847038,3.5894,139.45,139.43,0.12502]
[1728556847446,3.5895,139.44,139.43,0.12502]
[1728556847846,11.04,139.47,139.43,0.12502]
[1728556848036,3.589,139.46,139.43,0.12502]
[1728556848240,11.04,139.47,139.43,0.12502]
[1728556848642,3.5895,139.44,139.43,0.12502]
[1728556848837,14.6295,139.44,139.43,0.12502]
[1728556849547,11.04,139.44,139.38,3.5909]
[1728556849842,11.04,139.42,139.37,16.28502]
[1728556850040,16.16,139.43,139.39,3.5906]
[1728556850247,16.16,139.43,139.38,11.04]
[1728556850946,3.5903,139.41,139.38,14.6309]
[1728556852255,3.5905,139.4,139.37,14.75622]
[1728556854346,11.04,139.41,139.37,0.12502]
[1728556854550,11.04,139.4,139.37,0.12502]
[1728556854751,16.16,139.4,139.37,0.12502]
[1728556855343,14.631,139.38,139.37,0.12502]
[1728556855541,11.04,139.38,139.33,105.54862789]
[1728556855948,3.5914,139.37,139.33,109.14082789]
[1728556856148,11.04,139.38,139.33,109.14082789]
[1728556856354,11.04,139.38,139.33,3.5922]
[1728556856847,11.04,139.36,139.31,11.16502]
[1728556857183,1.4436,139.41,139.32,3.5925]
[1728556857184,11.04,139.35,139.32,3.5925]
[1728556857753,14.6319,139.35,139.32,3.5925]
[1728556857948,14.6319,139.35,139.31,0.12502]
[1728556858154,5.12,139.36,139.33,3.5923]
[1728556858155,19.7517,139.36,139.33,3.5923]
[1728556858553,11.04,139.34,139.31,0.12502]
[1728556858762,11.04,139.33,139.31,0.12502]
[1728556859052,5.12,139.36,139.32,11.04]
[1728556860255,5.12,139.36,139.33,3.5921]
[1728556860454,5.12,139.36,139.32,11.04]
[1728556861751,19.7516,139.36,139.31,11.16502]
[1728556862756,19.7516,139.36,139.32,3.5925]
[1728556863453,11.04,139.35,139.31,0.12502]
[1728556863661,14.6322,139.34,139.31,0.12502]
[1728556864358,14.6319,139.35,139.31,0.12502]
[1728556865455,14.6319,139.35,139.32,3.5925]
[1728556865761,3.5921,139.34,139.31,0.12502]
[1728556865968,3.5921,139.34,139.31,3.71762]
[1728556866357,11.04,139.35,139.31,0.12502]
[1728556866578,5.24,139.37,139.34,11.04]
[1728556866755,5.24,139.39,139.36,11.04]
[1728556868264,5.24,139.39,139.38,3.591]
[1728556869162,3.5896,139.44,139.41,3.5902]
[1728556869362,16.28,139.45,139.4,11.04]
[1728556869755,19.8694,139.45,139.42,3.59]
[1728556869951,8.8294,139.45,139.42,3.59]
[1728556870152,11.04,139.46,139.42,3.59]
[1728556870460,5.24,139.45,139.42,14.63]
[1728556870857,5.24,139.45,139.42,3.59]
[1728556871057,5.24,139.45,139.42,14.63]
[1728556876563,3.5895,139.44,139.41,14.6301]
[1728556877067,5.24,139.45,139.41,11.04]
[1728556878563,5.24,139.45,139.42,14.63]
[1728556878961,4.1629,139.47,139.42,14.63]
[1728556879359,7.7518,139.47,139.42,14.63]
[1728556879869,4.1629,139.47,139.42,14.63]
[1728556880060,15.2029,139.47,139.42,14.63]
[1728556881359,3.589,139.46,139.42,14.63]
[1728556887173,20.4429,139.47,139.42,14.63]
[1728556887470,3.5896,139.44,139.41,14.63]
[1728556887867,3.71492,139.43,139.41,3.5902]
[1728556888067,11.16502,139.43,139.38,11.04]
[1728556888971,3.59,139.42,139.4,3.5904]
[1728556889272,3.59,139.42,139.38,11.04]
[1728556889472,3.59,139.42,139.39,3.5905]
[1728556891171,3.59,139.42,139.4,3.5905]
[1728556892073,11.16502,139.43,139.4,3.5905]
[1728556892265,14.75482,139.43,139.4,3.5905]
[1728556892464,0.12502,139.43,139.39,11.04]
[1728556892670,0.12502,139.43,139.42,14.63]
[1728556899171,0.12502,139.43,139.42,3.59]
[1728556899478,0.12502,139.43,139.42,14.63]
[1728556902271,0.12502,139.49,139.47,3.5887]
[1728556902976,0.12502,139.49,139.46,11.04]
[1728556903176,0.12502,139.49,139.46,14.6288]
[1728556903474,0.12502,139.49,139.46,11.04]
[1728556903972,0.12502,139.49,139.47,3.5887]
[1728556904977,3.71322,139.49,139.47,3.5887]
[1728556906073,0.12502,139.49,139.47,3.5887]
[1728556913379,3.71322,139.49,139.47,3.5887]
[1728556917691,3.5885,139.48,139.43,3.5896]
[1728556917885,3.5885,139.48,139.45,11.04]
[1728556919588,3.5885,139.48,139.46,3.589]
[1728556921481,0.12502,139.49,139.46,3.589]
[1728556921690,3.71332,139.49,139.46,3.589]
[1728556921888,0.12502,139.49,139.46,3.589]
[1728556923387,3.5885,139.48,139.46,3.589]
[1728556926495,3.5891,139.46,139.43,3.5896]
[1728556926699,11.04,139.46,139.43,3.5896]
[1728556927294,3.5894,139.45,139.43,3.5896]
[1728556927498,11.04,139.46,139.43,3.5896]
[1728556928094,11.04,139.46,139.42,11.04]
[1728556928290,3.5896,139.44,139.41,11.04]
[1728556928893,3.5898,139.43,139.41,14.6301]
[1728556929793,3.5896,139.44,139.41,14.6301]
[1728556930300,8.7893,139.45,139.42,11.04]
[1728556931391,8.7893,139.45,139.43,3.5897]
[1728556932099,8.7893,139.45,139.42,11.04]
[1728556932100,8.7893,139.45,139.38,5.2]
[1728556932402,3.5897,139.44,139.41,14.6301]
[1728556932607,5.2,139.45,139.42,11.04]
[1728556933193,16.24,139.45,139.4,11.04]
[1728556933592,3.5896,139.44,139.42,3.5899]
[1728556934403,3.5899,139.43,139.4,3.5904]
[1728556935396,14.6299,139.43,139.4,3.5904]
[1728556935901,3.59,139.42,139.4,3.5904]
[1728556936591,11.04,139.43,139.4,3.5904]
[1728556936791,14.6299,139.43,139.4,3.5904]
[1728556936991,3.5899,139.43,139.4,3.5904]
[1728556937392,3.5899,139.43,139.41,11.04]
[1728556937601,3.5896,139.44,139.42,3.59]
[1728556937804,5.2,139.45,139.42,11.04]
[1728556938193,8.7895,139.45,139.42,14.6299]
[1728556939706,8.7891,139.46,139.43,3.5896]
[1728556954912,0.12502,139.49,139.48,3.5885]
[1728556955120,0.12502,139.49,139.48,14.6285]
[1728556960814,0.12502,139.49,139.44,2.8816]
[1728556961013,3.5885,139.48,139.46,3.5888]
[1728556961216,11.04,139.47,139.39,2.7284]
[1728556961415,11.04,139.47,139.42,11.04]
[1728556961814,3.5891,139.46,139.43,3.5895]
[1728556963812,3.5891,139.46,139.43,14.6295]
[1728556964711,3.5891,139.46,139.43,11.04]
[1728556964909,3.5891,139.46,139.44,3.5895]
[1728556966813,3.5891,139.46,139.4,5.16]
[1728556966814,3.5886,139.48,139.46,3.5889]
[1728556967037,1.52902,139.49,139.45,11.04]
[1728556967405,5.11742,139.49,139.46,3.5888]
[1728556969615,3.71342,139.49,139.46,3.5888]
[1728556972028,0.12502,139.49,139.48,11.04]
[1728556972210,0.12502,139.49,139.48,14.6285]
[1728556984532,0.12502,139.49,139.48,3.5885]
[1728556984735,0.12502,139.49,139.46,3.5889]
[1728556984920,0.12502,139.49,139.45,16.18]
[1728556985324,0.12502,139.49,139.46,11.04]
[1728556985531,0.12502,139.49,139.47,3.5886]
[1728556985725,0.12502,139.49,139.47,14.6286]
[1728556988240,3.71332,139.49,139.47,3.5886]
[1728556988531,3.71332,139.49,139.46,14.6289]
[1728556989632,3.71332,139.49,139.47,11.04]
[1728556989830,3.71332,139.49,139.47,14.6286]
[1728556992131,0.12502,139.49,139.47,11.04]
[1728556992326,0.12502,139.49,139.48,3.5885]
[1728556996354,3.71322,139.49,139.47,3.5886]
[1728556996553,3.71322,139.49,139.47,11.04]
[1728556998452,3.71322,139.49,139.46,14.6288]
[1728557000265,3.71322,139.49,139.46,11.04]
[1728557000543,3.71322,139.49,139.47,3.5886]
[1728557002044,3.5887,139.47,139.45,3.5891]
[1728557002249,3.5887,139.47,139.39,11.2206]
[1728557002474,3.5887,139.47,139.43,11.04]
[1728557002751,14.6286,139.48,139.45,14.6291]
[1728557002950,3.5886,139.48,139.45,14.6291]
[1728557003653,3.5886,139.48,139.46,3.5889]
[1728557003854,1.56122,139.49,139.46,3.5889]
[1728557004045,5.14952,139.49,139.46,14.6289]
[1728557005047,3.5885,139.48,139.46,14.6289]
[1728557005354,1.56122,139.49,139.46,14.6288]
[1728557005651,1.56122,139.49,139.46,3.5888]
[1728557005954,3.5886,139.48,139.45,14.6292]
[1728557008841,3.5886,139.48,139.45,3.5892]
[1728557009670,3.5886,139.48,139.44,11.04]
[1728557009988,3.5886,139.48,139.45,3.5892]
[1728557011560,3.5893,139.45,139.43,3.5896]
[1728557011760,11.04,139.46,139.42,11.04]
[1728557012753,11.04,139.46,139.42,14.6299]
[1728557013155,3.5894,139.45,139.42,14.6299]
[1728557014861,3.5894,139.45,139.43,3.5897]
[1728557015678,11.04,139.47,139.43,11.04]
[1728557015857,11.04,139.47,139.44,3.5893]
[1728557016056,14.6288,139.47,139.44,3.5893]
[1728557017055,11.04,139.47,139.45,3.5892]
[1728557017555,11.04,139.47,139.43,11.04]
[1728557018458,14.6287,139.47,139.43,11.04]
[1728557019557,11.04,139.47,139.43,11.04]
[1728557020670,11.04,139.47,139.45,3.5891]
[1728557023272,14.6287,139.47,139.45,3.5891]
[1728557023868,11.04,139.47,139.45,3.5891]
[1728557025263,14.6287,139.47,139.45,3.5891]
[1728557025772,3.5891,139.46,139.43,3.5896]
[1728557026366,14.6291,139.46,139.43,3.5895]
[1728557026770,14.6291,139.46,139.42,11.04]
[1728557026975,14.6291,139.46,139.4,5.12]
[1728557027266,11.04,139.46,139.41,11.04]
[1728557027770,14.6291,139.46,139.44,3.5894]
[1728557028068,11.04,139.47,139.44,3.5894]
[1728557028565,14.6288,139.47,139.45,3.5892]
[1728557040166,5.12,139.48,139.46,3.5888]
[1728557040367,16.16,139.48,139.46,3.5888]
[1728557040872,11.04,139.47,139.46,3.5888]
[1728557044682,11.04,139.47,139.42,11.04]
[1728557044882,11.04,139.47,139.45,3.5891]
[1728557044883,14.6288,139.47,139.45,3.5891]
[1728557054490,8.7085,139.48,139.46,3.5889]
[1728557061099,11.04,139.47,139.46,3.5889]
[1728557067106,3.589,139.46,139.44,3.5894]
[1728557067308,14.629,139.46,139.44,3.5894]
[1728557067605,11.04,139.46,139.41,11.04]
[1728557067805,11.04,139.46,139.45,3.5892]
[1728557068504,3.5893,139.45,139.43,3.5896]
[1728557068703,14.6293,139.45,139.43,3.5896]
[1728557068905,11.04,139.45,139.43,3.5896]
[1728557069199,11.04,139.45,139.44,3.5895]
[1728557070302,11.04,139.45,139.4,5.12]
[1728557070508,14.6294,139.45,139.4,16.16]
[1728557070806,14.6294,139.45,139.41,11.04]
[1728557071010,14.6294,139.45,139.43,3.5896]
[1728557073410,3.5894,139.45,139.43,3.5896]
[1728557073611,14.6288,139.47,139.44,3.5893]
[1728557076106,14.6288,139.47,139.42,11.04]
[1728557076320,14.6288,139.47,139.45,3.589]
[1728557076321,16.16,139.47,139.45,3.589]
[1728557081514,19.7487,139.47,139.45,3.589]
[1728557088430,14.6291,139.46,139.42,3.5899]
[1728557088631,11.04,139.45,139.4,11.04]
[1728557089223,14.6294,139.45,139.42,3.5899]
[1728557089425,11.04,139.44,139.37,67.72450789]
[1728557089625,5.12,139.47,139.38,16.16]
[1728557089626,11.04,139.42,139.38,16.16]
[1728557090020,11.04,139.42,139.41,3.5903]
[1728557092128,5.12,139.44,139.41,3.5902]
[1728557092351,16.16,139.44,139.4,11.04]
[1728557094233,16.16,139.44,139.41,3.5902]
[1728557094430,16.16,139.44,139.4,11.04]
[1728557095137,16.16,139.44,139.42,3.5898]
[1728557095338,11.04,139.43,139.4,11.04]
[1728557095542,11.04,139.43,139.37,72.84450789]
[1728557095731,11.04,139.43,139.41,3.5901]
[1728557095932,14.6298,139.43,139.41,3.5901]
[1728557096436,11.04,139.43,139.41,3.5901]
[1728557099238,14.6298,139.43,139.41,3.5901]
[1728557100742,5.12,139.44,139.4,11.04]
[1728557101045,5.12,139.44,139.42,3.5898]
[1728557101747,8.7096,139.44,139.42,3.5898]
[1728557102345,5.12,139.44,139.4,11.04]
[1728557102538,5.12,139.44,139.43,3.5897]
[1728557102733,3.54531301,139.48,139.42,11.04]
[1728557102939,1.56122,139.49,139.42,11.04]
[1728557102940,5.12,139.46,139.42,11.04]
[1728557103135,23.32630855,139.47,139.44,3.5893]
[1728557104056,14.629,139.46,139.44,3.5893]
[1728557106743,11.04,139.45,139.39,5.12]
[1728557107044,11.04,139.43,139.39,5.12]
[1728557107451,11.04,139.42,139.41,3.5902]
[1728557109247,11.04,139.42,139.38,3.5909]
[1728557109446,11.04,139.4,139.37,0.12502]
[1728557109844,11.04,139.4,139.38,3.591]
[1728557110042,11.04,139.4,139.37,0.12502]
[1728557110769,11.04,139.4,139.39,3.5908]
[1728557111345,11.04,139.4,139.38,3.5909]
[1728557112143,11.04,139.4,139.37,0.12502]
[1728557112144,11.04,139.39,139.37,3.71612]
[1728557112847,11.04,139.38,139.37,0.12502]
[1728557113345,14.631,139.38,139.37,0.12502]
[1728557113741,8.711,139.38,139.37,0.12502]
[1728557113965,5.12,139.38,139.37,0.12502]
[1728557115254,22.6087,139.4,139.37,3.71632]
[1728557115842,17.4887,139.4,139.37,3.71632]
[1728557116054,16.16,139.4,139.38,3.591]
[1728557116352,5.12,139.4,139.38,3.591]
[1728557116751,11.04,139.39,139.37,0.12502]
[1728557117284,3.5909,139.39,139.37,0.12502]
[1728557117460,14.6309,139.39,139.37,0.12502]
[1728557117669,3.5909,139.39,139.37,0.12502]
[1728557117851,19.7506,139.4,139.37,3.71632]
[1728557119351,3.5908,139.39,139.37,0.12502]
[1728557120848,14.6308,139.39,139.37,0.12502]
[1728557128058,14.631,139.38,139.37,0.12502]
[1728557133270,3.52104597,139.43,139.37,0.12502]
[1728557133567,5.12,139.43,139.39,11.04]
[1728557133771,5.12,139.43,139.41,3.5901]
[1728557134277,8.71,139.43,139.4,3.5903]
[1728557134463,5.12,139.43,139.4,3.5903]
[1728557134659,5.12,139.43,139.39,11.04]
[1728557135568,94.42436223,139.45,139.4,11.04]
[1728557136062,98.01376223,139.45,139.42,3.5898]
[1728557136869,98.01376223,139.45,139.43,3.5896]
[1728557136870,94.42436223,139.45,139.43,3.5896]
[1728557137072,93.09456223,139.45,139.43,3.5896]
[1728557137271,93.09456223,139.45,139.38,5.12]
[1728557137466,11.04,139.43,139.41,3.5901]
[1728557137663,11.04,139.43,139.38,16.16]
[1728557137867,14.6299,139.43,139.4,3.5903]
[1728557138469,11.04,139.42,139.37,11.16502]
[1728557138669,14.63,139.42,139.39,3.5907]
[1728557138961,14.63,139.42,139.37,16.28502]
[1728557139266,11.04,139.42,139.4,3.5905]
[1728557139870,14.6301,139.42,139.4,3.5905]
[1728557140774,11.04,139.42,139.4,3.5905]
[1728557140970,14.6299,139.43,139.4,3.5905]
[1728557142574,1.3751,139.44,139.39,11.04]
[1728557142575,11.04,139.44,139.39,11.04]
[1728557143176,6.5655,139.45,139.43,3.5896]
[1728557143375,17.6055,139.45,139.43,3.5896]
[1728557144394,21.1948,139.45,139.43,3.5896]
[1728557144972,11.04,139.44,139.43,3.5896]
[1728557146178,11.04,139.44,139.4,11.04]
[1728557146379,3.5898,139.43,139.4,11.04]
[1728557147278,3.5898,139.43,139.38,11.04]
[1728557147279,14.6298,139.43,139.38,11.04]
[1728557147782,14.6298,139.43,139.4,3.5904]
[1728557148276,3.59,139.42,139.38,11.04]
[1728557148579,3.59,139.42,139.39,3.5906]
[1728557148978,3.59,139.42,139.4,3.5905]
[1728557149280,14.6298,139.43,139.4,3.5905]
[1728557151274,3.5901,139.42,139.4,3.5905]
[1728557152278,3.5901,139.42,139.39,3.5907]
[1728557152473,11.04,139.43,139.39,3.5907]
[1728557152671,11.04,139.4,139.38,3.5909]
[1728557153876,14.6306,139.4,139.38,3.5909]
[1728557154181,11.04,139.4,139.37,3.71622]
[1728557154383,14.631,139.39,139.37,0.12502]
[1728557154579,11.04,139.38,139.37,0.12502]
[1728557155182,14.64100093,139.38,139.37,0.12502]
[1728557155378,14.631,139.38,139.37,0.12502]
[1728557157174,14.631,139.38,139.34,3.5919]
[1728557157381,11.04,139.36,139.34,3.5919]
[1728557157981,14.6311,139.38,139.36,3.5915]
[1728557158199,11.04,139.38,139.36,3.5915]
[1728557159285,16.16,139.39,139.34,11.04]
[1728557160485,16.16,139.39,139.37,3.5911]
[1728557160881,11.04,139.39,139.37,3.5911]
[1728557161285,11.04,139.39,139.35,11.04]
[1728557161684,16.0723,139.4,139.35,11.04]
[1728557162584,16.0723,139.4,139.37,3.5911]
[1728557164477,11.04,139.39,139.34,5.12]
[1728557164682,11.04,139.38,139.34,5.12]
[1728557164888,11.04,139.38,139.33,11.04]
[1728557165085,14.6312,139.38,139.35,3.5917]
[1728557166193,11.04,139.38,139.36,3.5915]
[1728557167082,19.0468,139.41,139.36,11.04]
[1728557167581,22.6372,139.41,139.38,3.5908]
[1728557170506,3.5909,139.39,139.34,11.04]
[1728557170997,3.5909,139.39,139.36,3.5914]
[1728557171887,3.5909,139.39,139.37,3.5913]
[1728557172694,11.04,139.38,139.36,3.5914]
[1728557173094,14.6309,139.39,139.36,3.5914]
[1728557173395,14.6309,139.39,139.34,11.04]
[1728557173593,11.04,139.36,139.32,16.16]
[1728557173798,11.04,139.38,139.33,11.04]
[1728557174096,11.04,139.39,139.37,3.5911]
[1728557174291,14.6306,139.4,139.35,11.04]
[1728557174489,14.6306,139.4,139.37,3.5911]
[1728557174993,11.04,139.38,139.34,11.04]
[1728557175194,11.04,139.38,139.35,3.5918]
[1728557175589,14.6311,139.38,139.35,3.5918]
[1728557175791,11.04,139.38,139.34,3.5919]
[1728557176205,3.5914,139.37,139.32,16.16]
[1728557176498,3.5914,139.37,139.35,3.5918]
[1728557176993,11.04,139.38,139.32,16.16]
[1728557177194,3.5909,139.39,139.35,11.04]
[1728557178298,3.5909,139.39,139.36,3.5915]
[1728557179796,3.5909,139.39,139.37,3.5913]
[1728557180497,3.5909,139.39,139.36,3.5914]
[1728557180699,11.04,139.38,139.36,3.5914]
[1728557181204,11.04,139.38,139.34,11.04]
[1728557181404,11.04,139.38,139.35,3.5917]
[1728557182002,14.6314,139.37,139.34,3.5919]
[1728557183703,75.50001686,139.42,139.32,16.16]
[1728557183704,3.71492,139.43,139.41,3.5902]
[1728557184312,3.71492,139.43,139.4,14.6304]
[1728557185802,14.75492,139.43,139.4,3.5904]
[1728557187902,3.5905,139.41,139.36,3.5914]
[1728557188107,3.5905,139.41,139.37,11.04]
[1728557188402,14.6305,139.41,139.37,11.04]
[1728557188610,3.5906,139.4,139.37,11.04]
[1728557189519,3.5906,139.4,139.37,14.6311]
[1728557191006,3.5906,139.4,139.37,11.04]
[1728557191213,3.5906,139.4,139.38,3.591]
[1728557194131,3.5906,139.4,139.37,3.5911]
[1728557196939,3.5906,139.4,139.38,3.591]
[1728557197641,3.5906,139.4,139.36,11.04]
[1728557197944,3.5906,139.4,139.37,3.5912]
[1728557200140,5.12,139.42,139.36,11.04]
[1728557200445,14.6305,139.41,139.38,3.5909]
[1728557210753,8.7101,139.42,139.4,3.5904]
[1728557210946,0.12502,139.43,139.39,11.04]
[1728557211146,0.12502,139.43,139.41,11.04]
[1728557212247,0.12502,139.43,139.42,3.59]
[1728557219559,0.12502,139.43,139.4,16.16]
[1728557219762,0.12502,139.43,139.41,3.5901]
[1728557220758,0.12502,139.43,139.41,3.5903]
[1728557222466,3.71482,139.43,139.41,3.5903]
[1728557224862,0.12502,139.43,139.41,3.5903]
[1728557231899,0.12502,139.43,139.4,11.04]
[1728557232172,0.12502,139.43,139.42,14.63]
[1728557250578,0.12502,139.43,139.41,3.5901]
[1728557250774,0.12502,139.43,139.39,16.16]
[1728557251274,3.71482,139.43,139.4,3.5904]
[1728557251666,0.12502,139.43,139.39,11.04]
[1728557251871,0.12502,139.43,139.41,3.59]
[1728557252067,0.12502,139.43,139.42,11.04]
[1728557253382,0.12502,139.43,139.42,14.63]
[1728557257082,0.12502,139.43,139.41,5.12]
[1728557257281,0.12502,139.43,139.41,19.7501]
[1728557257789,0.12502,139.43,139.41,16.16]
[1728557258086,0.12502,139.43,139.42,3.59]
[1728557258691,0.12502,139.43,139.42,14.63]
[1728557267299,0.12502,139.43,139.42,3.59]
[1728557270892,0.12502,139.43,139.42,14.63]
[1728557273498,0.12502,139.43,139.42,3.59]
[1728557279800,0.12502,139.43,139.42,14.63]
[1728557283904,0.12502,139.43,139.41,3.5901]
[1728557284104,0.12502,139.43,139.41,19.7501]
[1728557284403,0.12502,139.43,139.41,14.6301]
[1728557284803,0.12502,139.43,139.42,14.63]
[1728557294202,0.12502,139.43,139.42,19.75]
[1728557297903,4.9482,139.48,139.45,3.5891]
[1728557298108,4.9482,139.48,139.45,14.6291]
[1728557300119,0.12502,139.49,139.47,11.04]